[Event "Romanian Superliga 2024"]
[Site "Mamaia"]
[Date "2024.10.03"]
[Round "6.1"]
[White "Pranav Vijay"]
[Black "Mendonca, Leon Luke"]
[Result "1-0"]
[ECO "A06"]
[WhiteElo "2252"]
[BlackElo "2622"]
[Annotator "TA"]
[PlyCount "115"]
[EventDate "2024.09.26"]
[EventType "team-tourn"]
[EventCountry "ROU"]
[SourceTitle "playchess.com"]
[Source "ChessBase"]
[SourceQuality "1"]
[TimeControl "40/5400+30:1800+30"]

{[%evp 9,115,7,2,0,0,0,0,-2,-4,-3,8,0,13,0,0,0,3,0,0,0,-3,-6,0,-24,-5,-23,-22,-25,-17,-17,0,-10,4,-38,-33,-36,0,0,0,0,0,-6,0,0,11,3,17,4,3,4,59,60,52,56,89,104,152,96,185,189,232,173,318,310,303,302,324,324,296,314,1244,204,206,213,213,213,202,197,204,281,273,259,258,216,456,442,442,410,494,437,511,547,542,541,529,498,768,708,741,725,750,765,1759,1820,2056,1848,29977,29977]} 1. b3 {[%emt 0:01:46]} d5 {[%emt 0:03:38]} 2. Bb2 {[%emt 0:00:09]} Nf6 {[%emt 0:00:05]} 3. Nf3 {[%emt 0:02:05]} Bf5 {[%emt 0:01:05]} 4. e3 {[%emt 0:00:20]} e6 {[%emt 0:00:59]} 5. Be2 {[%emt 0:02:09]} h6 {[%emt 0:00:17]} 6. c4 {[%emt 0:01:42]} Bd6 {[%emt 0:03:09]} 7. Nc3 {[%emt 0:02:44]} c6 {[%emt 0:00:54]} 8. O-O {[%emt 0:00:52] The position is equal.} O-O {[%emt 0:00:05]} 9. d4 {[%emt 0:01:27]} Ne4 {[%emt 0:09:07]} 10. Nxe4 {[%emt 0:08:55]} Bxe4 {[%emt 0:02:02]} 11. Ne1 {[%emt 0:00:50]} Nd7 {[%emt 0:01:11]} 12. Bd3 {[%emt 0:02:22]} Qe7 {[%emt 0:15:46]} 13. f3 {[%emt 0:12:48]} Bxd3 {[%emt 0:01:03]} 14. Nxd3 {[%emt 0:00:08]} dxc4 {[%emt 0:08:17]} 15. bxc4 {[%emt 0:00:08]} c5 {[%emt 0:02:38]} 16. f4 {[%emt 0:03:47]} Rac8 {[%emt 0:02:18]} 17. Qb3 {[%emt 0:01:05]} Rc7 {[%emt 0:01:03]} 18. Rac1 {[%emt 0:09:07]} Rfc8 {[%emt 0:01:41]} 19. a4 {[%emt 0:16:05]} f6 {[%emt 0:07:17]} 20. Rce1 {[%emt 0:07:06]} Qf7 {[%emt 0:05:35]} 21. Ne5 {[%emt 0:04:30]} Qe8 {[%emt 0:05:17]} (21... fxe5 22. fxe5 Qe7 23. exd6 Qxd6 24. Rb1 $11) 22. Nd3 {[%emt 0:01:09][%cal Be5d3,Bd3f2,Bf2e4,Be4g3,Bg3f5][%mdl 32]} Kh8 {[%emt 0:08:17]} 23. a5 {[%emt 0:02:23]} Qf7 {[%emt 0:04:45]} 24. Rc1 {[%emt 0:06:28]} Qg6 {[%emt 0:01:25]} 25. Rf3 {[%emt 0:01:43]} Qf5 {[%emt 0:01:13]} 26. Nf2 {[%emt 0:01:50]} Qh5 {[%emt 0:03:44]} 27. Ne4 {[%emt 0:01:18]} Bf8 {[%emt 0:01:35] [#]} 28. f5 $1 {[%emt 0:01:19]} cxd4 {[%emt 0:01:11]} 29. exd4 {[%emt 0:00:54]} exf5 {[%emt 0:05:54]} (29... e5 $11) 30. Ng3 $14 {[%emt 0:03:26][%csl LRf5,LRh5]} Qe8 {[%emt 0:01:02]} 31. Nxf5 {[%emt 0:00:16]} Qe4 {[%emt 0:00:31] Black is now going downhill.} 32. Rff1 {[%emt 0:01:24]} b6 {[%emt 0:01:13]} (32... Nb8 $142) 33. Qg3 {[%emt 0:02:28]} ({Better is} 33. Ba3) 33... Qe6 {[%emt 0:01:57]} (33... Rxc4 $2 34. Rxc4 Rxc4 35. Ba3 $18) (33... Nb8 $16 {was worth a try.}) 34. Ba3 $1 $18 {[%emt 0:01:06] Bd6 would now be deadly.} Qf7 {[%emt 0:00:44]} 35. Bxf8 {[%emt 0:00:33]} Qxf8 {[%emt 0:00:11]} (35... Nxf8 {might work better.} 36. Nd6 Qd7) 36. Rce1 {[%emt 0:00:16]} Nb8 {[%emt 0:00:38]} 37. Re6 {[%emt 0:01:19]} Nc6 {[%emt 0:00:35]} 38. axb6 {[%emt 0:00:44]} axb6 {[%emt 0:00:04]} 39. Rfe1 {[%emt 0:00:09] Qg6 is the strong threat.} Qb4 $2 {[%emt 0:01:01]} (39... Nxd4 40. Nxd4 Rxc4) 40. Re8+ $2 {[%emt 0:00:00]} (40. Rxc6 b5 41. Rf1 (41. Rxc7 Rxc7 42. c5 Rf7 $18) 41... Qxc4 42. Rxc4 bxc4 43. Rc1 (43. Qc3 Ra7 $18)) 40... Rxe8 {[%emt 0:00:00]} 41. Rxe8+ {[%emt 0:00:56]} Kh7 {[%emt 0:00:32]} 42. Qxc7 $40 {[%emt 0:07:05][%csl Gf5][%cal Rc7g7][%mdl 128] White goes for the king.} Qb1+ {[%emt 0:01:56]} 43. Kf2 {[%emt 0:00:03][%csl Gf5][%cal Rc7g7]} Qxf5+ {[%emt 0:00:53][%mdl 4096] Endgame. KQR-KQN} 44. Ke3 {[%emt 0:00:05]} Nb4 {[%emt 0:06:06]} 45. Qe7 {[%emt 0:13:51]} (45. Qxb6 Qd3+ 46. Kf2 Qf5+ 47. Ke1 Qb1+ 48. Ke2 Qc2+ 49. Kf3 Qd1+ 50. Re2 Nc2 $16) 45... Qg5+ {[%emt 0:10:27]} 46. Kf2 $1 {[%emt 0:00:35]} (46. Kf3 Qh5+ 47. Ke3 (47. Kg3 Nc2 $14) 47... Qg5+ 48. Kf2 (48. Kf3 Nc2 $18) 48... Nd3+ 49. Ke2 Nf4+ 50. Kd1 (50. Kf3 Nxg2 51. Qe4+ f5 $11) 50... Qa5 $11) 46... Qf4+ $2 {[%emt 0:02:46]} (46... Qd2+ 47. Kf3 Qd3+ 48. Kf4 Qf1+ (48... Qxd4+ $2 49. Qe4+ Qxe4+ 50. Kxe4 $18) 49. Kg3 Qd3+ 50. Qe3 Qg6+ 51. Kf2 Nd3+ 52. Kf1 Nb2) 47. Ke2 {[%emt 0:00:09]} Qg4+ {[%emt 0:02:32] [#]} 48. Ke1 $1 {[%emt 0:00:09]} Nd3+ {[%emt 0:01:42]} 49. Kd2 {[%emt 0:00:08]} Nf2 {[%emt 0:00:08][%cal Of6f5]} 50. Qe6 {[%emt 0:05:14] And now Qxg4 would win.} Qd1+ {[%emt 0:06:35] [#]} 51. Ke3 $1 {[%emt 0:02:10] Intending Qf5+ and mate.} Ng4+ {[%emt 0:00:45]} 52. Ke4 {[%emt 0:00:57] Qf5+ would kill now.} Qc2+ {[%emt 0:01:59]} (52... h5 $142 53. Kd5 (53. Qxb6 $2 Qe2+ 54. Kd5 Qxe8 $19) 53... Nh6) 53. Kd5 {[%emt 0:02:10]} f5 {[%emt 0:00:02][%cal Bf6f5,Bf5f4][%mdl 32]} 54. Kc6 {[%emt 0:00:45]} (54. Qxb6 $2 Nf6+ (54... Nxh2 $2 55. Qe6 $18) 55. Kd6 Nxe8+ $19) 54... Nf6 {[%emt 0:00:46]} 55. Re7 {[%emt 0:00:17]} Qxg2+ {[%emt 0:00:31]} 56. d5 {[%emt 0:00:27][%cal Bd4d5,Bd5d6,Bd6d7][%mdl 32]} (56. Kxb6 Qb2+ 57. Ka6 Qa3+ 58. Kb7 Qb2+ 59. Kc8 (59. Qb6 Qg2+ 60. Ka7 Qg5 $18) 59... Qxd4 60. Qxf5+ Kg8 $18) 56... Qg5 {[%emt 0:00:50]} 57. d6 {[%emt 0:00:18]} ({Not} 57. Kxb6 f4 $18) 57... f4 {[%emt 0:00:30]} 58. d7 {[%emt 0:00:18] Weighted Error Value: White=0.17 (very precise) /Black=0.43.  Mistake:       	White=2     	Black=7      Inaccurate:     	White=1     	Black=2      OK:         	White=10    	Black=15     Best:        	White=9     	Black=5      Strong:       	White=3     	---} (58. Kxb6 f3 59. h4 Qg1+ 60. c5 Qb1+ 61. Kc7 Qg6 $18) 1-0

[Event "Romanian Superliga 2024"]
[Site "Mamaia"]
[Date "2024.10.03"]
[Round "6.2"]
[White "Aryan Chopra"]
[Black "Erdos, Viktor"]
[Result "1-0"]
[ECO "C42"]
[WhiteElo "2620"]
[BlackElo "2538"]
[Annotator "TA"]
[PlyCount "113"]
[EventDate "2024.09.26"]
[EventType "team-tourn"]
[EventCountry "ROU"]
[SourceTitle "playchess.com"]
[Source "ChessBase"]
[SourceQuality "1"]
[TimeControl "40/5400+30:1800+30"]

{[%evp 43,113,37,34,37,45,46,36,36,56,59,49,53,62,54,74,57,60,59,70,6,118,36,63,70,65,60,77,87,129,121,155,148,190,192,180,159,245,214,206,161,738,725,29974,716,728,723,1152,1102,1339,1308,1425,1011,1862,1853,29946,29947,29944,29949,29949,29937,11500,12847,29944,11493,29961,29946,29965,29967,29968,29969,29969,10457]} 1. e4 {[%emt 0:00:03]} e5 {[%emt 0:04:04]} 2. Nf3 {[%emt 0:00:06]} Nf6 {[%emt 0:00:08]} 3. Nxe5 {[%emt 0:00:05]} d6 {[%emt 0:00:04]} 4. Nf3 {[%emt 0:00:04]} Nxe4 {[%emt 0:00:06]} 5. d4 {[%emt 0:00:04]} d5 {[%emt 0:00:05]} 6. Bd3 {[%emt 0:00:05]} Bd6 {[%emt 0:00:05]} 7. O-O {[%emt 0:00:07]} O-O {[%emt 0:00:05]} 8. c4 {[%emt 0:00:05]} c6 {[%emt 0:00:05]} 9. Qc2 {[%emt 0:00:24]} h6 {[%emt 0:00:42] is recently more successful than 9...Na6. C42: Petroff Defence: 3 Nxe5 and unusual White 3rd moves.} 10. c5 $5 {[%emt 0:00:20][%mdl 4] Leaves trodden paths.} Bc7 {[%emt 0:00:56]} 11. Nc3 {[%emt 0:00:10]} f5 {[%emt 0:01:31]} 12. a3 {[%emt 0:00:14]} Qf6 $146 {[%emt 0:05:06]} ({Predecessor:} 12... Be6 13. Ne2 g5 14. Ne1 Nd7 15. f3 Qe8 16. g3 Qh5 17. Ng2 Rae8 18. Be3 Ndf6 {½-½ Mendonca,L (2622)-Gurel,E (2514) FIDE Grand Swiss 2023 (7)}) 13. Ne2 {[%emt 0:00:41]} Ng5 {[%emt 0:11:56]} 14. Ne5 {[%emt 0:09:11]} Nd7 {[%emt 0:03:00]} 15. f4 {[%emt 0:02:28]} Ne4 {[%emt 0:00:42]} 16. b4 {[%emt 0:11:55]} Kh7 {[%emt 0:01:06]} 17. b5 {[%emt 0:07:55]} cxb5 {[%emt 0:05:10]} 18. Bxb5 {[%emt 0:00:32]} Qe6 {[%emt 0:00:13]} 19. c6 {[%emt 0:15:15]} Nxe5 {[%emt 0:10:48]} 20. fxe5 {[%emt 0:00:06]} Bb6 {[%emt 0:00:50]} 21. Be3 {[%emt 0:01:32]} g5 {[%emt 0:02:13]} 22. Ng3 {[%emt 0:05:59]} Kg7 {[%emt 0:20:44]} 23. Rac1 {[%emt 0:20:39]} bxc6 {[%emt 0:05:26]} 24. Bxc6 {[%emt 0:03:36]} Rb8 {[%emt 0:02:04]} 25. Qa2 {[%emt 0:06:51]} Nxg3 {[%emt 0:07:11]} 26. hxg3 {[%emt 0:00:05]} Bb7 {[%emt 0:00:03]} 27. Bxb7 $1 {[%emt 0:01:56]} Rxb7 {[%emt 0:00:03]} 28. Qd2 {[%emt 0:03:02]} Rc7 {[%emt 0:08:31]} 29. a4 {[%emt 0:00:26]} Rxc1 {[%emt 0:05:17]} 30. Rxc1 {[%emt 0:00:06]} Rc8 {[%emt 0:00:09]} 31. Rb1 {[%emt 0:04:31]} (31. Rxc8 $14 Qxc8 32. Qb4) 31... Rb8 {[%emt 0:02:30] [#]} (31... f4 $11 32. gxf4 gxf4 33. Bxf4 Qg6) 32. Qd3 {[%emt 0:01:56]} (32. Qa2 $1 $16 {a5 is the strong threat.} Rf8 33. a5) 32... Rc8 {[%emt 0:00:10]} 33. Rf1 {[%emt 0:03:47]} Rf8 $1 {[%emt 0:01:47]} 34. Kh2 {[%emt 0:00:03]} Qd7 {[%emt 0:01:31]} 35. Qa3 {[%emt 0:01:56]} Rc8 {[%emt 0:02:54]} 36. a5 {[%emt 0:00:41]} Bd8 {[%emt 0:00:03] [#]} 37. Bd2 $1 {[%emt 0:00:59]} Be7 {[%emt 0:00:52]} 38. Qd3 {[%emt 0:00:07]} Rc4 {[%emt 0:00:44]} 39. Rxf5 {[%emt 0:01:11]} a6 {[%emt 0:00:30]} (39... Qe6 $16 40. g4 Qc8) 40. Rf1 {[%emt 0:00:00]} Qg4 {[%emt 0:00:00]} 41. Qb1 {[%emt 0:10:04]} Rxd4 $2 {[%emt 0:23:25]} (41... Qh5+ 42. Kg1 Qg4) 42. Qb7 $18 {[%emt 0:09:35]} Qh5+ {[%emt 0:00:22]} 43. Kg1 {[%emt 0:00:04]} Qe8 {[%emt 0:00:07]} 44. Be3 {[%emt 0:08:43]} Re4 {[%emt 0:00:59]} 45. Bc5 {[%emt 0:00:04]} (45. Qxd5 $2 Rxe3 46. Qd4 Qc6 (46... Rxg3 $2 47. e6+ Kg6 48. Qe4+ Kg7 49. Rf7+ $18) 47. e6+ (47. Qxe3 $2 Bc5 $19) 47... Kg6 $19) 45... Rxe5 {[%emt 0:00:06]} 46. Bd4 $1 {[%emt 0:00:03]} Kg8 {[%emt 0:00:07]} 47. g4 {[%emt 0:02:27]} ({And not} 47. Bxe5 Bc5+ 48. Rf2 (48. Bd4 Bxd4+ 49. Rf2 Bxf2+ 50. Kxf2 Qf7+ 51. Qxf7+ Kxf7 $19) 48... Bxf2+ 49. Kxf2 Qxe5 $11) 47... Bd6 {[%emt 0:06:11]} 48. Bxe5 {[%emt 0:00:31]} Qxe5 {[%emt 0:00:06]} 49. Qf7+ {[%emt 0:00:17]} ({Worse is} 49. Qxa6 Qh2+ 50. Kf2 Bc5+ 51. Ke1 Qe5+ 52. Kd1 Qa1+ 53. Ke2 Qb2+ 54. Kd3 Qb3+ 55. Ke2 (55. Kd2 Bb4+ 56. Kc1 Ba3+ 57. Kd2 Bb4+ 58. Kc1 Ba3+ 59. Kd2 Bb4+ $11) 55... Qc2+ 56. Kf3 Qc3+ 57. Ke2 Qc2+ 58. Kf3 Qb3+ 59. Ke2 Qe3+ 60. Kd1 Qb3+ 61. Ke2 $11) 49... Kh8 {[%emt 0:00:01]} 50. Qf6+ {[%emt 0:00:06]} Kh7 {[%emt 0:01:27]} 51. Qxe5 {[%emt 0:00:54]} Bxe5 {[%emt 0:00:01]} 52. Rf5 {[%emt 0:00:38]} Bc3 {[%emt 0:00:24]} 53. Rxd5 {[%emt 0:00:08]} Kg7 {[%emt 0:00:19]} 54. Rd7+ {[%emt 0:00:56]} Kf8 {[%emt 0:00:48]} 55. Rd6 {[%emt 0:00:04]} Bxa5 {[%emt 0:00:22]} 56. Rxh6 {[%emt 0:00:11]} Bd2 {[%emt 0:01:11]} 57. Rxa6 {[%emt 0:00:06]} 1-0

[Event "Romanian Superliga 2024"]
[Site "Mamaia"]
[Date "2024.10.03"]
[Round "6.3"]
[White "Grigore, George-Gabriel"]
[Black "Nisipeanu, Liviu-Dieter"]
[Result "0-1"]
[ECO "E32"]
[WhiteElo "2414"]
[BlackElo "2580"]
[Annotator "TA"]
[PlyCount "56"]
[EventDate "2024.09.26"]
[EventType "team-tourn"]
[EventCountry "ROU"]
[SourceTitle "playchess.com"]
[Source "ChessBase"]
[SourceQuality "1"]
[TimeControl "40/5400+30:1800+30"]

{[%evp 21,56,0,2,-39,-48,-71,-27,-57,-67,-181,-196,-197,-195,-176,-175,-177,-186,-223,-150,-370,-352,-475,-452,-487,-458,-424,-329,-356,-337,-330,-337,-490,-196,-207,-66,-626,-612]} 1. d4 {[%emt 0:00:35]} Nf6 {[%emt 0:00:07]} 2. c4 {[%emt 0:00:12]} e6 {[%emt 0:00:07]} 3. Nc3 {[%emt 0:00:14]} Bb4 {[%emt 0:00:07]} 4. Qc2 {[%emt 0:00:22]} O-O {[%emt 0:00:12]} 5. a3 {[%emt 0:00:08]} Bxc3+ {[%emt 0:00:05]} 6. Qxc3 {[%emt 0:00:04]} b6 {[%emt 0:00:08]} 7. Bg5 {[%emt 0:00:12]} Bb7 {[%emt 0:00:08]} 8. e3 {[%emt 0:00:25]} d6 {[%emt 0:00:07]} 9. f3 {[%emt 0:01:02]} h6 {[%emt 0:00:11]} 10. Bh4 {[%emt 0:00:04]} Nbd7 {[%emt 0:00:05]} 11. Bd3 {[%emt 0:00:16]} e5 {[%emt 0:00:08]} 12. O-O-O {[%emt 0:16:52]} e4 {[%emt 0:15:32]} 13. Bc2 {[%emt 0:03:41]} Qe8 {[%emt 0:07:23][%cal Ob6b5]} 14. f4 {[%emt 0:03:32][%cal Og2g4] Black has an edge.} b5 {[%emt 0:00:18]} 15. Nh3 {[%emt 0:26:11]} (15. Qb4 $1 $15) 15... bxc4 $19 {[%emt 0:00:30]} 16. Bxf6 {[%emt 0:00:12]} Nxf6 {[%emt 0:00:05]} 17. Qxc4 {[%emt 0:00:11]} Bd5 {[%emt 0:09:06]} 18. Qa4 {[%emt 0:04:37]} Qc8 {[%emt 0:06:21]} 19. Nf2 {[%emt 0:06:33]} a5 {[%emt 0:04:58] Strongly threatening ...Qb7.} 20. Rd2 $2 {[%emt 0:13:11] [#]} (20. Bb3 $17 {keeps fighting.}) 20... Qb7 {[%emt 0:04:36]} 21. g4 {[%emt 0:17:23]} Rfb8 {[%emt 0:00:25]} 22. Bd1 {[%emt 0:01:19]} Ra6 {[%emt 0:00:07]} 23. g5 {[%emt 0:00:44]} hxg5 {[%emt 0:10:01]} 24. fxg5 {[%emt 0:00:06]} Nh7 {[%emt 0:13:10]} 25. g6 {[%emt 0:01:00]} fxg6 {[%emt 0:01:18]} 26. Be2 {[%emt 0:03:14]} (26. b3 {is a better defense.}) 26... Rb6 {[%emt 0:04:00]} (26... Rc6+ $142 27. Rc2 Qxb2+ 28. Kd2 Rxc2+ 29. Qxc2 Qxa3) 27. Nd1 {[%emt 0:00:22]} Nf6 {[%emt 0:00:43]} (27... Kf8 $19 {Threatens to win with ...Bb3.} 28. Rg1 Bb3) 28. Bc4 {[%emt 0:00:52][%mdl 8192] [#]} (28. Rc2 $15) 28... Qc6 $1 {[%emt 0:01:00] Weighted Error Value: White=0.74/Black=0.51.  Loses game:     	White=2     	---        Mistake:       	White=2     	Black=2      Inaccurate:     	White=2     	Black=2      OK:         	White=5     	Black=7      Best:        	White=1     	Black=2      Strong:       	---       	Black=1} 0-1

[Event "Romanian Superliga 2024"]
[Site "Mamaia"]
[Date "2024.10.03"]
[Round "6.4"]
[White "Nanu, Costica-Ciprian"]
[Black "Istratescu, Andrei"]
[Result "1/2-1/2"]
[ECO "B33"]
[WhiteElo "2525"]
[BlackElo "2370"]
[Annotator "TA"]
[PlyCount "73"]
[EventDate "2024.09.26"]
[EventType "team-tourn"]
[EventCountry "ROU"]
[SourceTitle "playchess.com"]
[Source "ChessBase"]
[SourceQuality "1"]
[TimeControl "40/5400+30:1800+30"]

{[%evp 29,73,0,29,18,20,30,37,18,34,39,43,28,26,33,30,28,27,26,27,29,32,31,27,33,36,35,29,23,27,22,25,15,9,18,5,0,0,0,0,0,2,2,3,0,9,0]} 1. e4 {[%emt 0:00:44]} c5 {[%emt 0:00:44]} 2. Nf3 {[%emt 0:00:06][%cal Bg1f3,Bf3d4,Bd4b5,Bb5a3,Ba3c2][%mdl 32]} e6 {[%emt 0:00:52]} 3. d4 {[%emt 0:00:06]} cxd4 {[%emt 0:00:03]} 4. Nxd4 {[%emt 0:00:07]} Nf6 {[%emt 0:04:59]} 5. Nc3 {[%emt 0:00:10]} Nc6 {[%emt 0:00:11]} 6. Ndb5 {[%emt 0:03:31]} d6 {[%emt 0:01:17]} 7. Bf4 {[%emt 0:00:19]} e5 {[%emt 0:00:03]} 8. Bg5 {[%emt 0:00:06]} a6 {[%emt 0:00:04]} 9. Na3 {[%emt 0:00:05]} b5 {[%emt 0:00:09]} 10. Nd5 {[%emt 0:00:11]} Be7 {[%emt 0:00:03]} 11. Bxf6 {[%emt 0:00:06]} Bxf6 {[%emt 0:00:03]} 12. c3 {[%emt 0:00:14]} O-O {[%emt 0:01:31]} 13. Nc2 {[%emt 0:00:35]} Rb8 {[%emt 0:00:53]} 14. Be2 {[%emt 0:01:09]} Bg5 {[%emt 0:02:15]} 15. O-O {[%emt 0:00:42]} Ne7 {[%emt 0:14:38]} 16. Nxe7+ {[%emt 0:01:37]} Bxe7 {[%emt 0:03:13]} 17. Nb4 {[%emt 0:00:44]} Bb7 {[%emt 0:00:57] Against Nc6} 18. Nd5 {[%emt 0:00:39] White is slightly better.} Bxd5 {[%emt 0:04:45]} 19. Qxd5 {[%emt 0:00:44]} Qb6 {[%emt 0:00:13] Black is weak on the light squares} 20. Rad1 {[%emt 0:03:55]} Rfc8 {[%emt 0:03:19]} 21. Qb3 {[%emt 0:06:02]} Rc5 {[%emt 0:07:58]} 22. Rd5 {[%emt 0:02:36]} Rxd5 {[%emt 0:01:37]} 23. Qxd5 {[%emt 0:00:08]} Qc5 {[%emt 0:00:19]} 24. Rd1 {[%emt 0:01:45]} Qxd5 {[%emt 0:02:10]} 25. Rxd5 $11 {[%emt 0:00:07][%mdl 4096] Endgame. KRB-KRB} Kf8 {[%emt 0:00:05]} 26. Kf1 {[%emt 0:01:24]} Ke8 {[%emt 0:00:12]} 27. Ke1 {[%emt 0:02:52]} Kd7 {[%emt 0:00:12]} 28. Bd1 {[%emt 0:03:14]} Bd8 {[%emt 0:06:00]} 29. Rd3 {[%emt 0:01:00]} b4 {[%emt 0:02:44]} 30. Bb3 {[%emt 0:05:49]} bxc3 {[%emt 0:00:25] The position is equal.} 31. bxc3 {[%emt 0:00:06][%cal Od3h3]} (31. Rxc3 $2 {perishes.} Ba5 32. Kd2 g6 $19 (32... Bxc3+ $2 33. Kxc3 Rc8+ 34. Kd2 $19)) 31... Ke7 {[%emt 0:00:21]} 32. Rf3 {[%emt 0:00:05]} f6 {[%emt 0:00:08]} 33. Rh3 {[%emt 0:00:55]} h6 {[%emt 0:00:11]} 34. Rg3 {[%emt 0:00:12]} Kf8 {[%emt 0:00:05]} 35. Rd3 {[%emt 0:02:38]} Ke7 {[%emt 0:00:10]} 36. Rg3 {[%emt 0:05:39]} Kf8 {[%emt 0:00:05]} 37. Rd3 {[%emt 0:58:38] Weighted Error Value: White=0.04 (flawless) /Black=0.03 (flawless) .  OK:         	White=7     	Black=12} 1/2-1/2

[Event "Romanian Superliga 2024"]
[Site "Mamaia"]
[Date "2024.10.03"]
[Round "6.5"]
[White "Stepanencu, Nicodim-Cosmin"]
[Black "Ilinca, Felix-Antonio"]
[Result "1/2-1/2"]
[ECO "A13"]
[WhiteElo "2296"]
[BlackElo "2417"]
[Annotator "RC"]
[PlyCount "137"]
[EventDate "2024.09.26"]
[EventType "team-tourn"]
[EventCountry "ROU"]
[SourceTitle "playchess.com"]
[Source "ChessBase"]
[SourceQuality "1"]
[TimeControl "40/5400+30:1800+30"]

1. Nf3 {[%emt 0:01:13]} d5 {[%emt 0:00:43]} 2. g3 {[%emt 0:01:27]} Nf6 {[%emt 0:01:24]} 3. Bg2 {[%emt 0:00:07]} e6 {[%emt 0:00:49]} 4. c4 {[%emt 0:00:27]} d4 {[%emt 0:00:37]} 5. O-O {[%emt 0:02:43]} c5 {[%emt 0:00:32]} 6. e3 {[%emt 0:02:03]} Nc6 {[%emt 0:00:21]} 7. exd4 {[%emt 0:00:18]} cxd4 {[%emt 0:00:08]} 8. d3 {[%emt 0:00:04]} h6 {[%emt 0:00:24]} 9. Na3 {[%emt 0:01:22]} Bxa3 {[%emt 0:02:50]} 10. bxa3 {[%emt 0:00:05]} O-O {[%emt 0:00:27]} 11. Re1 {[%emt 0:01:54]} Re8 {[%emt 0:00:54]} 12. Bf4 {[%emt 0:18:30]} Ng4 {[%emt 0:03:51]} 13. h3 {[%emt 0:08:18]} e5 {[%emt 0:01:26]} 14. hxg4 {[%emt 0:00:09]} exf4 {[%emt 0:00:23]} 15. gxf4 {[%emt 0:00:05]} Bxg4 {[%emt 0:02:03]} 16. Rxe8+ {[%emt 0:01:26]} Qxe8 {[%emt 0:00:08]} 17. Qb3 {[%emt 0:00:02]} Qd7 {[%emt 0:12:43]} 18. Re1 {[%emt 0:20:17]} Rd8 {[%emt 0:11:15]} 19. Ne5 {[%emt 0:09:37]} Nxe5 {[%emt 0:01:55]} 20. Rxe5 {[%emt 0:00:02]} b6 {[%emt 0:01:04]} 21. Qb4 {[%emt 0:05:18]} Re8 {[%emt 0:06:26]} 22. Qe1 {[%emt 0:05:46]} Rxe5 {[%emt 0:05:33]} 23. Qxe5 {[%emt 0:00:20]} Bf5 {[%emt 0:05:51]} 24. Be4 {[%emt 0:01:18]} Bxe4 {[%emt 0:02:19]} 25. Qxe4 {[%emt 0:00:02]} g6 {[%emt 0:01:15]} 26. Kh2 {[%emt 0:01:27]} Qd6 {[%emt 0:06:41]} 27. Kg2 {[%emt 0:00:45]} Kg7 {[%emt 0:01:03]} 28. a4 {[%emt 0:00:29]} h5 {[%emt 0:01:22]} 29. a5 {[%emt 0:01:04]} bxa5 {[%emt 0:01:28]} 30. Qe5+ {[%emt 0:16:49]} Qxe5 {[%emt 0:13:24]} 31. fxe5 {[%emt 0:00:24]} g5 {[%emt 0:02:09]} 32. f4 {[%emt 0:00:51]} gxf4 {[%emt 0:00:18]} 33. Kf3 {[%emt 0:00:04]} Kf8 {[%emt 0:00:31]} 34. Kxf4 {[%emt 0:01:12]} Ke7 {[%emt 0:00:08]} 35. Kf5 {[%emt 0:00:18]} h4 {[%emt 0:01:23]} 36. Kg4 {[%emt 0:00:05]} Ke6 {[%emt 0:00:13]} 37. Kxh4 {[%emt 0:00:06]} Kxe5 {[%emt 0:00:36]} 38. Kg4 {[%emt 0:01:01]} f6 {[%emt 0:02:40]} 39. a3 {[%emt 0:00:47]} a6 {[%emt 0:01:16]} 40. Kg3 {[%emt 0:00:00]} Kf5 {[%emt 0:00:00]} 41. Kf3 {[%emt 0:03:38]} a4 {[%emt 0:05:33]} 42. Kg3 {[%emt 0:04:50]} Kg5 {[%emt 0:01:21]} 43. Kh2 {[%emt 0:14:28]} Kg4 {[%emt 0:04:30]} 44. Kg2 {[%emt 0:00:05]} Kf4 {[%emt 0:01:29]} 45. Kh3 {[%emt 0:02:02]} Kf5 {[%emt 0:02:17]} 46. Kh4 {[%emt 0:00:17]} Kf4 {[%emt 0:01:08]} 47. Kh3 {[%emt 0:00:04]} Kf5 {[%emt 0:00:10]} 48. Kg2 {[%emt 0:06:06]} Kg4 {[%emt 0:02:12]} 49. Kf2 {[%emt 0:03:23]} Kf4 {[%emt 0:00:17]} 50. c5 {[%emt 0:00:35]} Ke5 {[%emt 0:00:21]} 51. Kf3 {[%emt 0:00:03]} Kd5 {[%emt 0:03:05]} 52. Kf4 {[%emt 0:00:05]} Kxc5 {[%emt 0:00:06]} 53. Kf5 {[%emt 0:00:03]} Kc6 {[%emt 0:00:33]} 54. Kxf6 {[%emt 0:00:17]} Kd6 {[%emt 0:00:33]} 55. Kf5 {[%emt 0:00:06]} Kd5 {[%emt 0:00:57]} 56. Kf4 {[%emt 0:00:05]} Kd6 {[%emt 0:00:18]} 57. Ke4 {[%emt 0:00:03]} Kc5 {[%emt 0:00:05]} 58. Ke5 {[%emt 0:00:04]} Kc6 {[%emt 0:00:05]} 59. Kxd4 {[%emt 0:00:06]} Kd6 {[%emt 0:00:05]} 60. Kc4 {[%emt 0:00:05]} Kc6 {[%emt 0:00:37]} 61. d4 {[%emt 0:04:29]} Kd6 {[%emt 0:00:45]} 62. d5 {[%emt 0:00:05]} Kd7 {[%emt 0:00:45]} 63. Kc5 {[%emt 0:00:04]} Kc7 {[%emt 0:00:05]} 64. d6+ {[%emt 0:00:07]} Kd7 {[%emt 0:00:46]} 65. Kd5 {[%emt 0:00:05]} a5 {[%emt 0:00:57]} 66. Kc5 {[%emt 0:00:06]} Kd8 {[%emt 0:00:08]} 67. Kc6 {[%emt 0:00:07]} Kc8 {[%emt 0:00:06]} 68. d7+ {[%emt 0:00:09]} Kd8 {[%emt 0:00:05]} 69. Kd6 {[%emt 0:00:04]} 1/2-1/2